bitfinex/quotes_SOLUSD_20250318
["timestamp","ask_amount","ask_price","bid_price","bid_amount"]
[1742299144260,0.03,123.84,123.81,155.2671318]
[1742299144863,0.03,123.84,123.81,138.9384]
[1742299145163,16.3287318,123.83,123.81,137.377]
[1742299147047,16.3287318,123.83,123.78,155.2145318]
[1742299148769,36.3587318,123.84,123.79,16.3287318]
[1742299149672,20.03,123.84,123.79,16.3287318]
[1742299149874,36.3587318,123.84,123.79,16.3287318]
[1742299151570,20.03,123.84,123.8,16.3287318]
[1742299152773,20.03,123.84,123.8,153.7057318]
[1742299155574,36.3587318,123.84,123.8,137.377]
[1742299155951,36.3587318,123.84,123.8,153.7057318]
[1742299156153,20.03,123.84,123.8,153.7057318]
[1742299156465,0.03,123.84,123.81,16.3287318]
[1742299156672,0.03,123.84,123.81,153.7057318]
[1742299161879,0.03,123.84,123.82,16.3287318]
[1742299162176,0.03,123.84,123.82,153.7057318]
[1742299162655,0.03,123.84,123.82,137.377]
[1742299166086,0.03,123.84,123.82,153.7057318]
[1742299173695,0.03,123.84,123.82,137.377]
[1742299176972,0.03,123.84,123.81,0.063]
[1742299177185,16.3587318,123.84,123.81,0.063]
[1742299177585,0.03,123.84,123.81,0.063]
[1742299177782,16.3287318,123.83,123.81,0.063]
[1742299179414,16.3287318,123.82,123.81,0.063]
[1742299182176,18.15945494,123.82,123.81,0.063]
[1742299182586,17.8751318,123.82,123.81,0.063]
[1742299191410,0.03,123.84,123.81,137.44]
[1742299191582,0.03,123.84,123.83,34.97838066]
[1742299191889,0.03,123.84,123.83,16.3287318]
[1742299193098,0.03,123.84,123.82,16.3287318]
[1742299196992,16.3287318,123.83,123.81,0.063]
[1742299197302,16.3287318,123.82,123.81,0.063]
[1742299204708,16.61305494,123.82,123.81,0.063]
[1742299205543,20.28432314,123.79,123.78,0.063]
[1742299205708,43.57305494,123.79,123.78,0.063]
[1742299207103,116.84048214,123.79,123.78,0.063]
[1742299207814,51.52555494,123.79,123.78,0.063]
[1742299208325,116.84048214,123.79,123.78,0.063]
[1742299208819,0.42648471,123.78,123.77,0.063]
[1742299209128,100.71979257,123.78,123.77,0.063]
[1742299209806,100.71979257,123.78,123.75,0.03]
[1742299210007,35.40486537,123.76,123.75,0.03]
[1742299210720,39.41142619,123.76,123.75,0.03]
[1742299212013,20.0,123.73,123.71,0.063]
[1742299212213,23.2887318,123.72,123.71,0.063]
[1742299214644,6.96,123.72,123.71,0.063]
[1742299214930,26.96,123.75,123.71,16.3917318]
[1742299215231,16.3287318,123.74,123.71,0.063]
[1742299215429,43.2887318,123.75,123.71,0.063]
[1742299215737,26.96,123.75,123.71,35.04138066]
[1742299216600,43.2887318,123.75,123.71,0.063]
[1742299216926,16.3287318,123.73,123.71,0.063]
[1742299217322,16.3287318,123.72,123.71,0.063]
[1742299217714,16.3287318,123.73,123.71,0.063]
[1742299218115,16.3287318,123.72,123.71,0.063]
[1742299218704,23.3087318,123.73,123.71,0.063]
[1742299219614,16.3287318,123.72,123.71,0.063]
[1742299220820,23.3087318,123.73,123.71,0.063]
[1742299222028,16.3287318,123.72,123.71,0.063]
[1742299222617,23.3087318,123.73,123.71,0.063]
[1742299226427,6.98,123.73,123.71,0.063]
[1742299226617,23.3087318,123.73,123.71,0.063]
[1742299227338,16.3287318,123.72,123.71,0.063]
[1742299230621,16.61305494,123.72,123.71,0.063]
[1742299231739,82.07014371,123.72,123.71,0.063]
[1742299231922,20.0,123.69,123.68,0.063]
[1742299232118,43.3087318,123.69,123.68,0.063]
[1742299233140,26.98,123.69,123.68,0.063]
[1742299233743,26.85875359,123.69,123.68,0.063]
[1742299234425,6.98,123.69,123.68,0.063]
[1742299242756,36.3287318,123.71,123.68,0.063]
[1742299242951,43.2887318,123.71,123.68,0.063]
[1742299246157,16.3287318,123.7,123.68,0.063]
[1742299247275,16.3287318,123.69,123.68,0.063]
[1742299251038,16.3287318,123.7,123.68,0.063]
[1742299251762,0.03,123.7,123.68,0.063]
[1742299252635,0.03,123.7,123.68,16.3917318]
[1742299253745,0.03,123.7,123.68,0.063]
[1742299256747,0.03,123.7,123.68,16.3917318]
[1742299256947,0.03,123.7,123.69,16.3287318]
[1742299257847,0.03,123.7,123.68,16.3917318]
[1742299260267,0.03,123.7,123.69,16.3287318]
[1742299261268,0.03,123.7,123.69,172.35538066]
[1742299261775,0.03,123.7,123.69,156.02664886]
[1742299264261,0.03,123.7,123.69,172.35538066]
[1742299264976,0.03,123.7,123.69,156.02664886]
[1742299268564,0.03,123.7,123.69,172.49754223]
[1742299268784,0.03,123.7,123.69,172.78186537]
[1742299268959,0.03,123.7,123.69,174.37986537]
[1742299269280,0.03,123.72,123.71,0.14216157]
[1742299269454,0.03,123.72,123.71,237.81246943]
[1742299269655,0.03,123.72,123.71,238.09679257]
[1742299269864,23.2887318,123.8,123.71,238.09679257]
[1742299269865,6.96,123.8,123.74,1.74016157]
[1742299270180,6.96,123.8,123.74,155.44589337]
[1742299271274,23.2887318,123.8,123.74,155.44589337]
[1742299271777,16.3287318,123.79,123.74,155.44589337]
[1742299271959,23.2887318,123.8,123.74,155.44589337]
[1742299273353,6.96,123.8,123.74,174.37986537]
[1742299274483,17.9746318,123.81,123.74,174.37986537]
[1742299274880,6.96,123.82,123.77,0.14216157]
[1742299275064,6.96,123.82,123.78,34.97838066]
[1742299275264,23.2887318,123.82,123.78,18.64964886]
[1742299275470,16.3287318,123.82,123.78,18.64964886]
[1742299276558,16.3287318,123.81,123.77,137.347]
[1742299276763,16.3287318,123.8,123.77,137.347]
[1742299276981,16.3287318,123.79,123.77,137.347]
[1742299277160,16.3287318,123.79,123.75,18.64964886]
[1742299279490,36.3287318,123.8,123.75,18.64964886]
[1742299280488,16.3287318,123.79,123.75,18.64964886]
[1742299281487,20.0,123.8,123.76,0.14216157]
[1742299281686,20.0,123.8,123.76,16.47089337]
[1742299281993,1.5241,123.81,123.77,16.3287318]
[1742299282291,1.5241,123.81,123.76,16.47089337]
[1742299282668,17.8528318,123.81,123.76,16.47089337]
[1742299283184,1.5241,123.81,123.76,16.47089337]
[1742299283588,1.5241,123.81,123.76,0.14216157]
[1742299283773,17.8528318,123.81,123.76,16.47089337]
[1742299284493,16.3287318,123.82,123.76,16.47089337]
[1742299284687,16.3287318,123.82,123.78,18.64964886]
[1742299285597,6.4675,123.83,123.78,34.97838066]
[1742299285771,22.7962318,123.83,123.78,34.97838066]
[1742299285971,22.7962318,123.83,123.78,172.32538066]
[1742299286672,16.3587318,123.83,123.78,172.32538066]
[1742299286975,0.03,123.83,123.8,18.64964886]
[1742299287175,0.03,123.83,123.8,155.99664886]
[1742299287595,0.03,123.83,123.8,172.32538066]
[1742299287895,0.03,123.83,123.82,18.64964886]
[1742299289213,0.03,123.83,123.82,16.47089337]
[1742299289376,0.03,123.83,123.82,172.75186537]
[1742299290272,0.03,123.83,123.82,155.99664886]
[1742299290490,0.03,123.83,123.82,172.32538066]
[1742299290677,0.03,123.83,123.8,23.2887318]
[1742299290880,0.03,123.83,123.81,18.64964886]
[1742299291592,0.03,123.83,123.8,6.96]
[1742299292784,0.03,123.83,123.8,23.2887318]
[1742299292978,0.03,123.83,123.81,34.97838066]
[1742299293188,0.03,123.83,123.82,16.3287318]
[1742299294505,0.03,123.83,123.82,172.75186537]
[1742299296181,0.03,123.83,123.82,172.46754223]
[1742299296390,0.03,123.83,123.82,172.75186537]
[1742299296981,0.03,123.83,123.82,180.78866537]
[1742299297208,0.03,123.85,123.84,237.72246943]
[1742299297489,0.03,123.85,123.84,244.68246943]
[1742299297695,0.03,123.85,123.84,179.36754223]
[1742299298000,0.03,123.85,123.84,179.65186537]
[1742299298590,0.03,123.85,123.84,244.96679257]
[1742299298992,0.063,123.87,123.86,0.14216157]
[1742299299296,0.063,123.87,123.86,47.37033761]
[1742299299605,0.063,123.88,123.87,25.21563357]
[1742299299790,0.063,123.91,123.88,69.97658875]
[1742299299987,0.063,123.91,123.88,52.69633657]
[1742299300399,0.063,123.91,123.89,19.57613357]
[1742299300598,0.03,123.92,123.91,0.14216157]
[1742299300804,0.03,123.92,123.91,44.24203802]
[1742299301194,0.03,123.92,123.91,44.52636116]
[1742299303191,0.03,123.92,123.91,45.73611763]
[1742299303601,0.03,123.92,123.91,44.52636116]
[1742299304107,0.03,123.92,123.91,45.73613012]
[1742299304496,0.03,123.97,123.95,18.79181043]
[1742299304687,0.03,123.97,123.96,25.59238916]
[1742299305288,0.03,123.97,123.96,162.81938916]
[1742299306185,0.03,123.97,123.96,181.75336116]
[1742299306789,0.03,123.97,123.96,207.20358875]
[1742299306991,23.43820577,124.03,123.98,0.14216157]
[1742299307299,25.45022759,124.04,123.99,44.09987645]
[1742299307699,6.1731,124.05,124.0,25.45022759]
[1742299308007,25.45022759,124.03,123.99,44.09987645]
[1742299308405,25.45022759,124.03,123.99,18.64964886]
[1742299309917,25.45022759,124.04,123.99,44.09987645]
[1742299310114,31.62332759,124.05,124.0,25.45022759]
[1742299310415,6.1731,124.05,124.02,18.64964886]
[1742299310710,26.99422759,124.07,124.02,155.87664886]
[1742299311097,6.03,124.08,124.04,18.64964886]
[1742299311295,31.48022759,124.08,124.04,18.64964886]
[1742299311988,25.45022759,124.07,124.03,137.227]
[1742299312306,31.48022759,124.08,124.03,162.67722759]
[1742299312492,25.45022759,124.07,124.03,137.227]
[1742299313206,25.45022759,124.06,124.01,169.61722759]
[1742299313895,25.45022759,124.05,124.01,144.167]
[1742299314102,25.45022759,124.06,124.01,169.61722759]
[1742299315108,25.48022759,124.07,124.02,44.24203802]
[1742299315691,25.48022759,124.07,124.02,44.09987645]
[1742299315914,25.45022759,124.06,124.02,18.64964886]
[1742299316409,0.03,124.07,124.02,18.64964886]
[1742299316613,25.45022759,124.06,124.02,18.64964886]
[1742299317006,25.45022759,124.06,124.02,155.87664886]
[1742299317715,0.03,124.07,124.02,181.32687645]
[1742299318014,25.48022759,124.07,124.02,181.32687645]
[1742299318392,0.03,124.07,124.03,25.45022759]
[1742299318792,25.48022759,124.07,124.02,181.32687645]
[1742299320495,25.48022759,124.07,124.02,155.87664886]
[1742299320713,25.45022759,124.05,124.02,137.227]
[1742299321714,25.45022759,124.06,124.02,137.227]
[1742299321908,0.03,124.07,124.03,18.64964886]
[1742299322113,25.48022759,124.07,124.03,18.64964886]
[1742299322504,25.45022759,124.06,124.02,137.227]
[1742299322704,25.45022759,124.05,124.02,137.227]
[1742299322911,25.45022759,124.05,124.01,162.81664886]
[1742299323217,25.45022759,124.05,124.01,155.87664886]
[1742299323721,25.45022759,124.04,124.01,137.227]
[1742299324214,25.45022759,124.04,124.02,18.64964886]
[1742299324417,25.45022759,124.05,124.01,137.227]
[1742299324721,25.45022759,124.03,124.0,162.81664886]
[1742299324893,25.45022759,124.02,123.99,137.227]
[1742299325100,25.45022759,124.0,123.96,137.29]
[1742299325312,25.45022759,123.98,123.96,0.063]
[1742299325697,6.94,124.01,123.96,18.71264886]
[1742299325904,25.45022759,124.0,123.96,155.93964886]
[1742299326089,25.45022759,124.02,123.97,25.59238916]
[1742299326296,25.45022759,124.02,123.98,18.64964886]
[1742299327018,25.45022759,124.01,123.98,18.64964886]
[1742299327213,7.9377,124.03,123.96,169.68022759]
[1742299327214,25.45022759,124.0,123.96,169.68022759]
[1742299327420,25.45022759,123.99,123.96,7.003]
[1742299327606,25.45022759,123.99,123.96,0.063]
[1742299327920,25.45022759,124.0,123.96,0.20516157]
[1742299328090,25.45022759,123.99,123.96,0.063]
[1742299328291,25.73455073,124.02,123.96,0.063]
[1742299328614,25.45022759,123.98,123.96,0.063]
[1742299330916,6.94,124.0,123.96,0.063]
[1742299331219,25.45022759,123.99,123.96,0.063]
[1742299332594,25.45022759,123.98,123.96,0.063]
[1742299332795,25.45022759,123.97,123.96,0.063]
[1742299334120,59.59593989,123.97,123.96,0.063]
[1742299335218,67.66243989,123.97,123.88,18.64964886]
[1742299335412,25.45022759,123.92,123.88,155.87664886]
[1742299335823,25.45022759,123.93,123.88,181.32687645]
[1742299336023,6.94,123.96,123.9,25.45022759]
[1742299336214,25.45022759,123.95,123.9,162.67722759]
[1742299336522,32.39022759,123.96,123.91,18.64964886]
[1742299336710,32.39022759,123.96,123.91,44.09987645]
[1742299337222,7.89176157,124.0,123.91,44.09987645]
[1742299337529,25.45022759,123.98,123.92,27.01672759]
[1742299337727,25.45022759,123.98,123.93,44.09987645]
[1742299337936,25.45022759,123.99,123.94,25.45022759]
[1742299338157,25.45022759,123.99,123.94,162.67722759]
[1742299338936,25.45022759,123.99,123.95,18.64964886]
[1742299339143,25.45022759,124.0,123.95,44.09987645]
[1742299339839,25.45022759,123.99,123.95,44.09987645]
[1742299340012,25.45022759,123.99,123.95,18.64964886]
[1742299341925,25.45022759,124.0,123.95,44.09987645]
[1742299343425,25.45022759,124.0,123.95,181.32687645]
[1742299344004,0.28432314,124.02,123.96,25.45022759]
[1742299344209,14.8228,124.03,123.96,25.45022759]
[1742299344417,25.45022759,124.01,123.96,162.67722759]
[1742299344835,0.67216157,124.06,123.97,45.82783802]
[1742299344836,25.45022759,124.02,123.97,45.82783802]
[1742299345038,25.45022759,124.03,123.98,25.45022759]
[1742299346746,25.45022759,124.02,123.97,164.40244886]
[1742299346920,25.45022759,124.01,123.97,164.40244886]
[1742299347523,25.45022759,124.01,123.97,189.85267645]
[1742299347943,25.45022759,124.02,123.97,189.85267645]
[1742299349034,0.03,124.06,124.01,25.45022759]
[1742299349232,0.03,124.06,124.02,32.39022759]
[1742299350044,0.03,124.06,124.03,25.45022759]
[1742299350632,0.03,124.06,124.03,32.41022759]
[1742299350942,0.03,124.06,124.03,6.96]
[1742299351524,0.03,124.06,124.03,6.94]
[1742299352042,25.45022759,124.04,124.01,144.187]
[1742299352254,25.45022759,124.04,124.01,6.96]
[1742299352829,25.45022759,124.02,123.98,213.4]
[1742299353527,0.03,124.06,124.01,25.45022759]
[1742299353834,25.48022759,124.06,124.01,6.96]
[1742299354040,25.45022759,124.04,124.0,18.64964886]
[1742299354219,25.45022759,124.05,124.0,51.07987645]
[1742299354932,25.45022759,124.04,124.0,6.98]
[1742299355132,25.45022759,124.05,124.0,51.07987645]
[1742299355336,25.48022759,124.06,124.01,25.45022759]
[1742299355541,0.03,124.06,124.01,25.45022759]
[1742299355842,25.48022759,124.06,124.01,25.45022759]
[1742299356047,25.45022759,124.05,124.0,51.07987645]
[1742299356347,25.48022759,124.06,124.01,25.45022759]
[1742299356931,45.45022759,124.05,124.0,51.07987645]
[1742299357137,0.03,124.06,124.03,25.45022759]
[1742299357745,0.03,124.06,124.04,7.0]
[1742299359040,25.48022759,124.06,124.04,7.0]
[1742299359946,25.48022759,124.06,124.02,144.227]
[1742299360326,25.48022759,124.06,124.02,137.227]
[1742299360546,25.45022759,124.05,124.02,144.227]
[1742299361043,25.45022759,124.05,124.0,32.45022759]
[1742299361230,25.48022759,124.06,124.01,25.45022759]
[1742299361826,25.48022759,124.06,124.01,44.09987645]
[1742299362850,0.03,124.06,124.01,44.09987645]
[1742299363057,25.48022759,124.06,124.01,44.09987645]
[1742299363851,25.48022759,124.06,124.0,144.227]
[1742299364036,25.45022759,124.04,124.0,144.227]
[1742299364754,20.0,124.05,124.01,25.45022759]
[1742299365057,25.48022759,124.06,124.01,25.45022759]
[1742299365433,0.03,124.06,124.01,25.45022759]
[1742299365636,0.03,124.06,124.02,25.45022759]
[1742299365956,25.45022759,124.05,124.0,169.67722759]
[1742299366258,25.48022759,124.06,124.01,25.45022759]
[1742299366841,25.45022759,124.05,124.0,169.67722759]
[1742299367739,25.48022759,124.06,124.01,25.45022759]
[1742299367942,20.0,124.03,124.0,144.227]
[1742299368155,25.48022759,124.06,124.01,25.45022759]
[1742299368851,25.45022759,124.05,124.0,169.67722759]
[1742299369945,25.45022759,124.03,124.0,137.227]
[1742299370935,20.0,124.01,123.98,213.4]
[1742299371834,45.45022759,124.01,123.98,213.4]
[1742299372852,25.45022759,124.0,123.96,18.71264886]
[1742299373751,25.45022759,124.0,123.96,0.063]
[1742299374273,45.45022759,124.01,123.96,44.16287645]
[1742299376158,25.45022759,124.0,123.96,18.71264886]
[1742299376346,25.45022759,124.0,123.96,0.063]
[1742299378153,45.45022759,124.01,123.96,25.51322759]
[1742299378662,25.45022759,124.03,123.98,25.45022759]
[1742299379256,31.72532759,124.04,123.98,25.45022759]
[1742299379457,31.72532759,124.04,123.98,32.45022759]
[1742299379954,25.45022759,124.03,123.98,32.45022759]
[1742299380339,6.2751,124.04,123.98,7.0]
[1742299380340,25.45022759,124.02,123.98,7.0]
[1742299380952,25.45022759,124.01,123.98,7.0]
[1742299381258,6.2751,124.04,123.98,7.0]
[1742299381464,25.45022759,124.01,123.98,7.0]
[1742299381657,25.45022759,124.01,123.96,162.74022759]
[1742299382244,25.45022759,124.02,123.97,18.64964886]
[1742299382451,25.45022759,124.02,123.97,44.09987645]
[1742299387062,25.48022759,124.02,123.97,44.09987645]
[1742299387372,25.48022759,124.02,123.97,181.32687645]
[1742299388756,25.45022759,124.01,123.97,155.87664886]
[1742299388974,25.45022759,124.01,123.97,137.227]
[1742299391346,25.45022759,124.01,123.96,0.063]
[1742299391551,25.45022759,123.99,123.96,0.063]
[1742299392965,25.45022759,123.97,123.91,149.56351762]
[1742299393193,25.45022759,123.96,123.91,175.01374521]
[1742299393759,25.45022759,123.96,123.91,144.227]
[1742299394270,25.45022759,123.95,123.91,144.227]
[1742299394566,25.45022759,123.96,123.91,144.227]
[1742299394960,25.45022759,123.96,123.91,169.67722759]
[1742299395669,25.45022759,123.97,123.92,44.09987645]
[1742299395868,6.98,123.98,123.92,44.09987645]
[1742299396055,25.45022759,123.98,123.93,25.45022759]
[1742299396256,25.45022759,123.99,123.94,25.45022759]
[1742299397951,25.45022759,124.0,123.95,25.45022759]
[1742299398747,25.48022759,124.02,123.97,25.45022759]
[1742299399566,0.03,124.02,123.98,25.45022759]
[1742299400278,0.03,124.01,123.99,25.45022759]
[1742299400463,0.03,124.01,123.98,44.09987645]
[1742299400774,0.03,124.01,124.0,25.45022759]
[1742299401071,0.03,124.01,123.99,25.45022759]
[1742299401272,0.03,124.01,123.98,162.67722759]
[1742299401577,25.48022759,124.01,123.98,137.227]
[1742299402574,0.03,124.01,123.98,137.227]
[1742299402753,0.03,124.01,123.98,162.67722759]
[1742299403149,0.03,124.01,124.0,25.45022759]
[1742299403963,0.03,124.01,123.99,32.45022759]
[1742299406480,0.03,124.01,124.0,25.45022759]
[1742299407281,0.03,124.01,123.99,32.45022759]
[1742299407578,0.03,124.01,123.99,7.0]
[1742299407773,0.03,124.01,123.99,32.45022759]
[1742299407973,0.03,124.01,123.99,169.67722759]
[1742299409462,0.03,124.01,124.0,25.45022759]
[1742299410086,0.03,124.01,124.0,181.32687645]
[1742299410380,0.03,124.01,124.0,182.91947645]
[1742299411061,0.03,124.01,124.0,164.26982759]
[1742299412258,0.03,124.01,124.0,137.227]
[1742299412757,0.03,124.01,124.0,162.67722759]
[1742299412964,0.03,124.01,124.0,181.32687645]
[1742299416068,0.03,124.01,124.0,137.227]
[1742299416666,0.03,124.01,123.99,7.0]
[1742299416867,0.03,124.01,123.97,171.22042759]
[1742299417170,0.03,124.01,123.97,8.5432]
[1742299417171,25.48022759,124.01,123.97,8.5432]
[1742299417360,25.45022759,124.0,123.97,7.04]
[1742299417566,25.45022759,123.98,123.94,0.063]
[1742299417777,25.45022759,123.97,123.94,0.063]
[1742299419287,0.28432314,124.0,123.94,0.063]
[1742299419473,25.45022759,123.98,123.94,0.063]
[1742299421379,45.45022759,123.99,123.94,25.51322759]
[1742299421893,25.45022759,123.98,123.94,0.063]
[1742299422686,7.07,124.01,123.95,25.45022759]
[1742299422891,25.45022759,124.0,123.95,25.45022759]
[1742299423281,25.45022759,123.98,123.94,137.29]
[1742299423486,25.45022759,123.98,123.94,0.063]
[1742299423795,20.03,124.01,123.95,25.45022759]
[1742299423986,25.45022759,124.0,123.95,25.45022759]
[1742299424183,25.45022759,123.98,123.94,137.29]
[1742299424391,0.28432314,124.0,123.94,137.29]
[1742299424392,25.45022759,123.97,123.94,0.063]
[1742299426078,25.45022759,123.96,123.94,0.063]
[1742299427383,25.45022759,123.95,123.94,0.063]
[1742299428677,25.73455073,123.95,123.94,0.063]
[1742299440598,52.49736116,123.95,123.94,0.063]
[1742299440985,0.28432314,123.91,123.84,228.457]
[1742299441180,25.45022759,123.89,123.84,253.90722759]
[1742299441404,25.45022759,123.89,123.84,228.457]
[1742299441595,25.45022759,123.9,123.84,253.90722759]
[1742299442479,25.45022759,123.9,123.85,7.02]
[1742299443404,20.28432314,123.91,123.85,32.47022759]
[1742299443799,25.45022759,123.9,123.85,32.47022759]
[1742299443999,25.45022759,123.9,123.85,7.02]
[1742299444191,25.45022759,123.89,123.85,7.02]
[1742299446188,25.45022759,123.88,123.85,7.02]
[1742299448407,45.45022759,123.89,123.85,7.02]
[1742299448783,25.45022759,123.86,123.83,0.063]
[1742299449005,0.28432314,123.88,123.83,0.063]
[1742299449006,25.45022759,123.85,123.83,0.063]
[1742299449201,25.45022759,123.85,123.84,0.063]
[1742299449387,25.45022759,123.86,123.84,0.063]
[1742299449587,25.45022759,123.87,123.84,0.063]
[1742299450510,25.45022759,123.86,123.84,0.063]
[1742299450732,25.45022759,123.85,123.84,0.063]
[1742299451104,25.73455073,123.85,123.84,0.063]
[1742299452220,25.8767123,123.85,123.84,0.063]
[1742299453495,25.73455073,123.85,123.84,0.063]
[1742299454329,25.59238916,123.85,123.84,0.063]
[1742299454734,25.73455073,123.85,123.84,0.063]
[1742299460523,0.28432314,123.85,123.84,0.063]
[1742299460721,25.45022759,123.88,123.84,0.063]
[1742299461226,25.73455073,123.87,123.84,0.063]
[1742299463523,25.45022759,123.86,123.84,0.063]
[1742299464805,20.0,123.86,123.84,0.063]
[1742299465112,25.45022759,123.85,123.84,0.063]
[1742299465511,45.45022759,123.86,123.84,0.063]
[1742299466405,20.0,123.86,123.84,0.063]
[1742299470635,25.45022759,123.87,123.84,0.063]
[1742299472713,25.73455073,123.88,123.84,0.063]
[1742299475229,16.59381336,123.88,123.84,0.063]
[1742299476032,36.30949022,123.87,123.84,0.063]
[1742299480537,16.30949022,123.86,123.84,0.063]
[1742299482620,16.30949022,123.85,123.84,0.063]
[1742299482820,16.30949022,123.86,123.84,0.063]
[1742299483218,36.30949022,123.87,123.84,0.063]
[1742299487030,20.0,123.87,123.84,0.063]
[1742299490135,36.30949022,123.87,123.84,0.063]
[1742299493428,20.0,123.87,123.84,0.063]
[1742299493737,16.30949022,123.89,123.84,16.37249022]
[1742299499346,0.28432314,123.92,123.86,16.30949022]
[1742299499549,20.0,123.9,123.86,16.30949022]
[1742299502540,36.30949022,123.9,123.85,23.36949022]
[1742299503554,20.0,123.91,123.87,1.662]
[1742299503735,20.0,123.9,123.87,1.662]
[1742299504338,36.59381336,123.92,123.88,16.30949022]
[1742299505236,20.0,123.91,123.88,16.30949022]
[1742299505928,0.03,123.94,123.88,16.30949022]
[1742299506133,20.0,123.93,123.89,16.30949022]
[1742299506529,36.30949022,123.93,123.88,16.30949022]
[1742299507046,16.30949022,123.91,123.87,1.662]
[1742299508965,16.30949022,123.9,123.87,1.662]
[1742299509373,16.30949022,123.89,123.87,1.662]
[1742299509571,16.30949022,123.89,123.86,0.063]
[1742299510071,16.30949022,123.88,123.86,0.063]
[1742299511656,20.0,123.89,123.86,0.063]
[1742299511855,16.30949022,123.9,123.86,0.063]
[1742299512346,16.45165179,123.91,123.86,16.37249022]
[1742299512971,16.30949022,123.91,123.86,16.37249022]
[1742299513270,16.30949022,123.93,123.88,17.92079022]
[1742299514051,16.30949022,123.93,123.88,1.6113]
[1742299514254,36.30949022,123.92,123.88,1.6113]
[1742299515353,16.30949022,123.91,123.88,1.6113]
[1742299515554,36.30949022,123.92,123.88,1.6113]
[1742299516983,16.30949022,123.91,123.88,1.6113]
[1742299517368,36.30949022,123.92,123.88,1.6113]
[1742299518099,20.0,123.92,123.88,1.6113]
[1742299519698,36.30949022,123.92,123.88,1.6113]
[1742299521003,16.30949022,123.91,123.88,1.6743]
[1742299521382,16.30949022,123.89,123.88,0.063]
[1742299522896,16.59381336,123.89,123.88,0.063]
[1742299523607,16.30949022,123.89,123.88,0.063]
[1742299525314,16.59381336,123.9,123.88,0.063]
[1742299526188,16.30949022,123.9,123.88,0.063]
[1742299526409,43.34949022,123.91,123.88,0.063]
[1742299528717,36.30949022,123.91,123.88,0.063]
[1742299533623,16.30949022,123.91,123.88,0.063]
[1742299533988,16.30949022,123.92,123.88,16.37249022]
[1742299534190,16.30949022,123.92,123.88,0.063]
[1742299534414,16.30949022,123.91,123.88,0.063]
[1742299538423,0.28432314,123.93,123.88,0.063]
[1742299538625,16.30949022,123.91,123.88,0.063]
[1742299542729,16.30949022,123.92,123.88,0.063]
[1742299551727,0.28432314,123.93,123.88,0.063]
[1742299551932,16.30949022,123.92,123.88,0.063]
[1742299552127,0.28432314,123.93,123.88,0.063]
[1742299552432,16.30949022,123.92,123.88,0.063]
[1742299552616,0.03,123.94,123.89,24.08649022]
[1742299552813,16.33949022,123.94,123.9,28.2485]
[1742299554229,16.33949022,123.94,123.9,68.6036]
[1742299554605,16.30949022,123.93,123.9,68.6036]
[1742299554809,16.30949022,123.92,123.9,28.2485]
[1742299556815,16.30949022,123.93,123.9,28.2485]
[1742299557419,36.33949022,123.94,123.9,68.6036]
[1742299557614,20.03,123.94,123.9,84.91309022]
[1742299558937,36.33949022,123.94,123.9,68.6036]
[1742299562463,16.30949022,123.92,123.9,28.2485]
[1742299562809,16.30949022,123.91,123.9,8.071]
[1742299563129,16.59381336,123.91,123.9,8.071]
[1742299563321,16.59381336,123.91,123.88,20.2431]
[1742299563528,16.30949022,123.9,123.88,20.2431]
[1742299563913,16.30949022,123.89,123.88,20.2431]
[1742299564544,16.59381336,123.89,123.88,0.063]
[1742299568742,36.30949022,123.9,123.88,0.063]
[1742299573157,20.0,123.9,123.88,0.063]
[1742299573560,36.30949022,123.9,123.88,0.063]
[1742299574338,16.30949022,123.89,123.88,0.063]
[1742299576566,36.30949022,123.9,123.88,0.063]
[1742299577368,20.0,123.9,123.88,0.063]
[1742299577571,36.30949022,123.9,123.88,0.063]
[1742299578241,16.30949022,123.89,123.88,0.063]